bitfinex-derivatives/quotes_BTCF0:USTF0_20251103
["timestamp","ask_amount","ask_price","bid_price","bid_amount"]
[1762187541020,0.0938715,106560.0,106540.0,0.68434898]
[1762187541315,0.5383115,106560.0,106550.0,0.37908]
[1762187541625,0.1775265,106540.0,106530.0,0.4231]
[1762187541824,0.5383265,106540.0,106530.0,0.4231]
[1762187542126,0.1775357,106530.0,106520.0,0.15196898]
[1762187542330,0.08364,106520.0,106510.0,0.17945045]
[1762187542623,0.5383446,106520.0,106510.0,0.57285579]
[1762187542823,0.5383446,106520.0,106510.0,0.58367434]
[1762187543028,0.5383446,106520.0,106510.0,0.24595434]
[1762187543241,0.54881438,106520.0,106510.0,0.15204094]
[1762187543527,0.54881438,106520.0,106510.0,0.44566094]
[1762187543726,0.3608,106570.0,106530.0,0.0938879]
[1762187543920,0.02679,106560.0,106550.0,0.64850861]
[1762187544117,0.02679,106560.0,106550.0,1.00930861]
[1762187544423,0.02679,106560.0,106550.0,1.0758086]
[1762187544930,1.52679,106580.0,106570.0,0.0938607]
[1762187545131,1.52679,106580.0,106570.0,0.64849141]
[1762187545425,1.52679,106580.0,106570.0,1.15779141]
[1762187545628,0.02679,106580.0,106570.0,1.15779141]
[1762187545930,0.09139,106600.0,106590.0,0.0938431]
[1762187546131,0.09139,106600.0,106590.0,0.64847381]
[1762187547928,0.09139,106600.0,106590.0,0.79697381]
[1762187548235,0.003,106610.0,106600.0,0.093834]
[1762187548532,0.003,106610.0,106600.0,0.944854]
[1762187548728,0.003,106610.0,106600.0,0.796354]
[1762187549431,0.007,106610.0,106600.0,0.796354]
[1762187550238,0.10285,106610.0,106600.0,1.0004253]
[1762187550725,0.10285,106610.0,106600.0,0.55463071]
[1762187550926,0.10285,106610.0,106600.0,0.3608]
[1762187551125,0.12329,106600.0,106590.0,0.98999351]
[1762187551927,0.12329,106600.0,106590.0,0.55463071]
[1762187552129,0.1896928,106590.0,106580.0,0.3608]
[1762187552328,0.0938428,106590.0,106580.0,0.3608]
[1762187552530,0.1896928,106590.0,106580.0,0.3608]
[1762187553138,0.1896928,106590.0,106580.0,0.4546516]
[1762187553341,0.1896928,106590.0,106580.0,0.3608]
[1762187553536,0.1896928,106590.0,106580.0,0.4546516]
[1762187553739,0.33041,106590.0,106580.0,0.4546516]
[1762187553937,0.09585,106590.0,106580.0,0.64848231]
[1762187554345,0.09585,106590.0,106580.0,0.89579071]
[1762187554638,0.09585,106590.0,106580.0,0.4546518]
[1762187555044,0.09685,106590.0,106580.0,0.4546518]
[1762187555233,0.05043,106590.0,106580.0,0.64848251]
[1762187555438,0.001,106590.0,106580.0,0.64848251]
[1762187555639,0.001,106590.0,106580.0,0.79698251]
[1762187556238,0.001,106590.0,106580.0,0.84680867]
[1762187557431,0.001,106590.0,106580.0,1.08136867]
[1762187558035,1.503,106610.0,106600.0,0.093834]
[1762187558242,1.503,106610.0,106600.0,1.35038471]
[1762187558445,0.05243,106610.0,106600.0,1.156554]
[1762187558641,0.05243,106610.0,106600.0,1.35038471]
[1762187559148,0.09885,106610.0,106600.0,0.7216]
[1762187559342,0.09885,106610.0,106600.0,1.3604359]
[1762187559742,0.007,106610.0,106600.0,1.3604359]
[1762187560244,0.007,106610.0,106600.0,1.0194359]
[1762187560446,0.05643,106610.0,106600.0,1.3602759]
[1762187560646,0.05643,106610.0,106600.0,1.3602359]
[1762187561046,0.007,106610.0,106600.0,1.41006206]
[1762187561350,0.05643,106610.0,106600.0,1.41006206]
[1762187561550,0.10285,106610.0,106600.0,1.41006206]
[1762187561848,0.10285,106610.0,106600.0,0.96525687]
[1762187562053,0.10285,106610.0,106600.0,0.98922471]
[1762187562557,0.10285,106610.0,106600.0,0.83364129]
[1762187562749,0.10285,106610.0,106600.0,0.49288129]
[1762187562953,0.12329,106600.0,106590.0,0.54270745]
[1762187563149,0.12329,106600.0,106590.0,0.88310745]
[1762187563344,0.02744,106600.0,106590.0,0.97695025]
[1762187564352,0.007,106610.0,106600.0,0.093834]
[1762187564556,0.05492,106610.0,106600.0,0.63648691]
[1762187564757,0.09909,106610.0,106600.0,0.63648691]
[1762187565355,0.09509,106610.0,106600.0,0.97672691]
[1762187566058,0.05392,106610.0,106600.0,0.97672691]
[1762187566260,0.006,106610.0,106600.0,1.1088082]
[1762187566660,0.006,106610.0,106600.0,1.18342728]
[1762187568561,0.006,106610.0,106600.0,1.1088082]
[1762187568754,0.05392,106610.0,106600.0,0.97672691]
[1762187569263,0.05392,106610.0,106600.0,0.92647529]
[1762187569557,0.006,106610.0,106600.0,1.00303828]
[1762187570349,0.05392,106610.0,106600.0,1.05285077]
[1762187570555,0.09809,106610.0,106600.0,1.05285077]
[1762187570755,0.09809,106610.0,106600.0,0.97592778]
[1762187570954,0.006,106610.0,106600.0,0.97592778]
[1762187572160,0.006,106610.0,106600.0,1.10800907]
[1762187572349,0.09809,106610.0,106600.0,0.84384649]
[1762187572551,0.09809,106610.0,106600.0,0.97592778]
[1762187573256,0.09809,106610.0,106600.0,0.92611529]
[1762187573759,0.09809,106610.0,106600.0,0.58671529]
[1762187574162,0.09809,106610.0,106600.0,0.92563529]
[1762187574950,0.09809,106610.0,106600.0,0.58671529]
[1762187575157,0.09809,106610.0,106600.0,0.92547529]
[1762187575354,0.006,106610.0,106600.0,0.92547529]
[1762187575655,0.09809,106610.0,106600.0,0.49288129]
[1762187575862,0.09809,106610.0,106600.0,0.454633]
[1762187576057,0.02738,106600.0,106590.0,0.58672309]
[1762187576263,0.02738,106600.0,106590.0,0.92536309]
[1762187576264,0.11947,106600.0,106590.0,0.92536309]
[1762187577652,0.11947,106600.0,106590.0,0.99186308]
[1762187578559,0.12147,106600.0,106590.0,0.99186308]
[1762187579060,0.12147,106600.0,106590.0,0.92536319]
[1762187579358,0.2153031,106600.0,106590.0,0.55938128]
[1762187579567,0.2153031,106600.0,106590.0,0.699]
[1762187579962,0.2153031,106600.0,106590.0,0.3608]
[1762187580356,0.2153031,106600.0,106590.0,0.42729999]
[1762187580566,0.2153031,106600.0,106590.0,0.52114189]
[1762187580773,0.2153031,106600.0,106590.0,0.4546419]
[1762187580961,0.1859319,106590.0,106580.0,0.06649999]
[1762187581163,0.19605971,106590.0,106580.0,0.06649999]
[1762187581359,0.19605971,106590.0,106570.0,0.52115669]
[1762187581360,0.11947,106580.0,106570.0,0.52115669]
[1762187581558,0.2133206,106580.0,106570.0,0.3608]
[1762187581762,0.2133206,106580.0,106570.0,0.52123743]
[1762187581963,0.2133206,106580.0,106570.0,0.06657803]
[1762187582162,0.1859494,106570.0,106560.0,0.4546684]
[1762187583072,0.19598122,106570.0,106560.0,0.4546684]
[1762187583255,0.19598122,106570.0,106560.0,0.59222969]
[1762187583256,0.09209,106570.0,106560.0,0.59222969]
[1762187584072,0.09209,106570.0,106560.0,0.64218873]
[1762187584268,0.04792,106570.0,106560.0,0.64218873]
[1762187584466,0.0773,106580.0,106570.0,0.0993395]
[1762187584675,0.02938,106580.0,106570.0,0.98006443]
[1762187584870,0.38902222,106610.0,106590.0,0.0938419]
[1762187584871,0.003,106610.0,106590.0,0.0938419]
[1762187585169,0.00067316,106610.0,106600.0,1.07959568]
[1762187585561,6e-08,106610.0,106600.0,1.07959568]
[1762187585768,1.5,106630.0,106620.0,0.0938155]
[1762187586071,1.86292305,106630.0,106620.0,0.95774354]
[1762187586369,1.52232305,106630.0,106620.0,0.95774354]
[1762187587169,1.86284305,106630.0,106620.0,0.14232804]
[1762187587370,2.48334527,106630.0,106620.0,0.01024675]
[1762187587564,0.09209,106610.0,106600.0,0.13208129]
[1762187587867,0.8158319,106610.0,106600.0,0.13208129]
[1762187588070,0.04792,106590.0,106580.0,0.41083814]
[1762187588273,0.43269,106590.0,106580.0,0.00012183]
[1762187588772,0.43269,106590.0,106580.0,0.49300312]
[1762187588969,0.43269,106590.0,106580.0,0.13220312]
[1762187589161,0.43269,106590.0,106580.0,0.49300312]
[1762187589566,0.43269,106590.0,106580.0,0.49600312]
[1762187589874,0.43269,106590.0,106580.0,0.00312183]
[1762187590075,0.79349,106590.0,106580.0,0.13520312]
[1762187590275,0.79349,106590.0,106580.0,0.00312183]
[1762187590467,1.02805,106590.0,106580.0,0.00312183]
[1762187590777,0.09209,106570.0,106560.0,0.3608]
[1762187590966,0.43253,106570.0,106560.0,0.4546684]
[1762187591166,0.43253,106570.0,106560.0,0.49288129]
[1762187591570,0.43260686,106570.0,106560.0,0.49288129]
[1762187591968,0.43260686,106570.0,106550.0,0.6366714]
[1762187592173,0.11947,106560.0,106550.0,0.6366714]
[1762187592470,0.11947,106560.0,106550.0,0.04991631]
[1762187592665,0.48027,106560.0,106550.0,0.04991631]
[1762187592870,0.09209,106550.0,106540.0,0.63978098]
[1762187593074,0.43229,106550.0,106540.0,0.63978098]
[1762187593768,0.44269205,106550.0,106540.0,0.63978098]
[1762187594171,0.01040205,106550.0,106540.0,0.63978098]
[1762187594366,0.35052205,106550.0,106540.0,0.58986467]
[1762187594781,0.02738,106560.0,106550.0,0.0938771]
[1762187594975,0.11574,106560.0,106550.0,0.58675839]
[1762187595183,0.45574,106560.0,106550.0,0.58675839]
[1762187595371,0.085,106550.0,106540.0,0.54582393]
[1762187595680,0.1788773,106550.0,106540.0,0.45778338]
[1762187595981,0.085,106550.0,106540.0,0.46078338]
[1762187596567,0.42504,106550.0,106540.0,0.64271003]
[1762187596772,0.42504,106550.0,106540.0,0.46078338]
[1762187596983,0.42504,106550.0,106540.0,0.09698338]
[1762187597281,0.5189173,106550.0,106540.0,0.00509728]
[1762187597484,0.8797173,106550.0,106540.0,0.00509728]
[1762187597678,0.8797173,106550.0,106540.0,0.09898338]
[1762187597874,0.085,106550.0,106540.0,0.09898338]
[1762187598070,0.5189173,106550.0,106540.0,0.00509728]
[1762187598276,0.085,106550.0,106540.0,0.09898328]
[1762187598581,0.5188772,106550.0,106540.0,0.09898328]
[1762187598781,0.425,106550.0,106540.0,0.09898328]
[1762187598981,0.085,106550.0,106540.0,0.45978328]
[1762187599182,0.085,106550.0,106540.0,0.58986457]
[1762187599384,0.42488,106550.0,106540.0,0.59086457]
[1762187599583,0.42488,106550.0,106540.0,0.45878328]
[1762187599781,0.42488,106550.0,106540.0,0.09798328]
[1762187599983,0.085,106550.0,106540.0,0.45778328]
[1762187600394,0.42476,106550.0,106540.0,0.45778328]
[1762187600599,0.5186373,106550.0,106540.0,0.45778328]
[1762187600902,0.42476,106550.0,106540.0,0.45778328]
[1762187601196,0.085,106550.0,106540.0,0.45778328]
[1762187601402,0.42464,106550.0,106540.0,0.45778328]
[1762187602489,0.11238,106560.0,106550.0,0.0938773]
[1762187602699,0.45222,106560.0,106550.0,0.58675859]
[1762187603199,0.45218,106560.0,106550.0,0.58675859]
[1762187603401,0.085,106550.0,106540.0,0.50762224]
[1762187603697,0.1788772,106550.0,106540.0,0.50762224]
[1762187603997,0.085,106550.0,106540.0,0.45777688]
[1762187604199,0.085,106550.0,106540.0,0.50762224]
[1762187604502,0.4248,106550.0,106540.0,0.63970353]
[1762187604704,0.085,106550.0,106540.0,0.63970353]
[1762187604901,0.42476,106550.0,106540.0,0.63970353]
[1762187605495,0.5186374,106550.0,106540.0,0.41374264]
[1762187605697,0.5186374,106550.0,106540.0,0.36389728]
[1762187605902,0.5186374,106550.0,106540.0,0.45778348]
[1762187606103,0.5186374,106550.0,106540.0,0.36489728]
[1762187606807,0.7532774,106550.0,106540.0,0.00409728]
[1762187607102,1.1140774,106550.0,106540.0,0.00409728]
[1762187607301,1.1140774,106550.0,106530.0,0.14374046]
[1762187607302,0.10195,106540.0,106530.0,0.14374046]
[1762187607494,0.1958362,106540.0,106530.0,0.14374046]
[1762187607696,0.1958362,106540.0,106530.0,0.0938951]
[1762187607897,0.20585845,106540.0,106530.0,0.0938951]
[1762187608205,0.10195,106540.0,106530.0,0.4546951]
[1762187608406,0.5353562,106540.0,106530.0,0.0938951]
[1762187608707,0.5353562,106540.0,106530.0,0.093895]
[1762187608708,0.54555629,106540.0,106530.0,0.093895]
[1762187609004,0.172815,106530.0,106520.0,0.45478988]
[1762187609203,0.07892,106530.0,106520.0,0.45478988]
[1762187609399,0.172815,106530.0,106520.0,0.45478988]
[1762187610405,1.107575,106530.0,106520.0,0.00209218]
[1762187610709,1.107575,106530.0,106520.0,0.09599608]
[1762187610908,0.512095,106530.0,106520.0,0.09599608]
[1762187611111,0.872895,106530.0,106520.0,0.00209218]
[1762187611406,0.872895,106530.0,106520.0,0.09599608]
[1762187611606,0.872895,106530.0,106520.0,0.00209218]
[1762187612497,0.872895,106530.0,106520.0,0.09599598]
[1762187612912,1.107575,106530.0,106520.0,0.09599598]
[1762187613205,0.872895,106530.0,106520.0,0.00209218]
[1762187613407,0.872895,106530.0,106520.0,0.09599608]
[1762187613708,0.872895,106530.0,106520.0,0.00209218]
[1762187614804,0.1728332,106510.0,106500.0,0.50766181]
[1762187615110,0.5116332,106510.0,106500.0,0.50766181]
[1762187615806,0.87250449,106510.0,106500.0,0.00309845]
[1762187616007,0.88232713,106510.0,106500.0,0.00309845]
[1762187616204,0.08881393,106510.0,106500.0,0.09701995]
[1762187616405,0.41775129,106510.0,106500.0,0.6397466]
[1762187616613,0.33883129,106510.0,106500.0,0.6397466]
[1762187616913,0.07899129,106510.0,106500.0,0.6397466]
[1762187617104,0.07899129,106510.0,106500.0,0.6447466]
[1762187617814,0.07899129,106510.0,106500.0,0.51266501]
[1762187618009,0.41771129,106510.0,106500.0,0.51266501]
[1762187618213,0.51162349,106510.0,106500.0,0.51266501]
[1762187618512,0.41771129,106510.0,106500.0,0.6447463]
[1762187619307,0.07899129,106510.0,106500.0,0.6447463]
[1762187619616,0.41755129,106510.0,106500.0,0.6447463]
[1762187619807,0.41755129,106510.0,106500.0,0.51266501]
[1762187619808,0.07899129,106510.0,106500.0,0.51266501]
[1762187620007,0.07899129,106510.0,106500.0,0.6447463]
[1762187621013,0.17290359,106510.0,106500.0,0.5508251]
[1762187621210,0.17290359,106510.0,106500.0,0.41874381]
[1762187622208,0.17290359,106510.0,106500.0,0.51266501]
[1762187623216,0.07899129,106510.0,106500.0,0.51266501]
[1762187623417,0.17290369,106510.0,106500.0,0.51266501]
[1762187623812,0.41707129,106510.0,106500.0,0.6447463]
[1762187624015,0.51098369,106510.0,106500.0,0.51266501]
[1762187624419,0.17290369,106510.0,106500.0,0.51266501]
[1762187624619,0.51094369,106510.0,106500.0,0.51266501]
[1762187624918,0.41695129,106510.0,106500.0,0.51266501]
[1762187625114,0.07899129,106510.0,106500.0,0.51266501]
[1762187625317,0.41687129,106510.0,106500.0,0.66116501]
[1762187625720,0.07899129,106510.0,106500.0,0.66116501]
[1762187625924,7.129e-05,106510.0,106500.0,0.85525187]
[1762187626417,0.04237129,106510.0,106500.0,0.85525187]
[1762187626612,0.08102129,106510.0,106500.0,1.14316651]
[1762187627017,0.08102129,106510.0,106500.0,1.19305488]
[1762187627218,0.08102129,106510.0,106500.0,1.14316651]
[1762187627613,0.08102129,106510.0,106500.0,0.99897313]
[1762187627818,0.17493349,106510.0,106500.0,0.66121313]
[1762187628020,0.08102129,106510.0,106500.0,0.66121313]
[1762187628227,0.08102129,106510.0,106500.0,0.85529999]
[1762187629313,0.08102129,106510.0,106500.0,0.80540651]
[1762187629719,0.08102129,106510.0,106500.0,0.66118729]
[1762187629917,0.17493359,106510.0,106500.0,0.56727243]
[1762187630319,0.53573359,106510.0,106500.0,0.20647243]
[1762187631021,0.17493369,106510.0,106500.0,0.66119363]
[1762187631227,0.08102129,106510.0,106500.0,0.51269363]
[1762187631425,0.04237129,106510.0,106500.0,0.70678049]
[1762187631725,0.08102129,106510.0,106500.0,0.70678049]
[1762187632319,0.08102129,106510.0,106500.0,0.65690651]
[1762187633118,0.17493369,106510.0,106500.0,0.36889845]
[1762187633318,0.17493369,106510.0,106500.0,0.46281965]
[1762187633524,0.08102129,106510.0,106500.0,0.51275263]
[1762187633721,7.129e-05,106510.0,106500.0,0.65690651]
[1762187634124,7.129e-05,106510.0,106500.0,0.72344794]
[1762187634326,0.08102129,106510.0,106500.0,0.65690651]
[1762187634729,0.08102129,106510.0,106500.0,0.99462651]
[1762187635329,0.08102129,106510.0,106500.0,1.06116794]
[1762187636735,7.129e-05,106510.0,106500.0,1.07784136]
[1762187637031,7.129e-05,106510.0,106500.0,1.14312651]
[1762187637226,0.02303,106520.0,106510.0,0.0939122]
[1762187637427,0.10398,106540.0,106530.0,0.0938946]
[1762187637740,0.1978657,106540.0,106530.0,0.04999014]
[1762187638226,0.20781266,106540.0,106530.0,0.04999014]
[1762187638431,0.54549266,106540.0,106530.0,0.04999014]
[1762187638833,0.1748448,106530.0,106520.0,0.04999014]
[1762187639027,0.1748448,106530.0,106520.0,0.14389374]
[1762187640134,0.1748448,106530.0,106520.0,0.04999014]
[1762187640428,0.1748448,106530.0,106520.0,0.05099014]
[1762187640738,0.1748448,106530.0,106520.0,0.14489374]
[1762187641028,0.08095,106530.0,106520.0,0.4557036]
[1762187641230,0.5124848,106530.0,106520.0,0.05101274]
[1762187641420,0.8732848,106530.0,106520.0,0.05101274]
[1762187641930,0.1748624,106510.0,106500.0,0.06980237]
[1762187642134,0.1981912,106500.0,106490.0,0.06670392]
[1762187642330,0.5589912,106500.0,106490.0,0.06670392]
[1762187643030,0.17488,106490.0,106480.0,0.52144002]
[1762187643229,0.41859,106490.0,106480.0,0.52144002]
[1762187643430,0.5125199,106490.0,106480.0,0.4547361]
[1762187643629,0.1942088,106480.0,106470.0,0.3608]
[1762187643834,0.20448699,106480.0,106470.0,0.53796245]
[1762187644228,0.11454819,106480.0,106470.0,0.53796245]
[1762187644427,0.10754819,106480.0,106470.0,0.53796245]
[1762187644637,0.0973884,106480.0,106470.0,0.53796245]
[1762187644931,0.0973884,106480.0,106470.0,0.4547476]
[1762187645125,0.0973884,106480.0,106470.0,0.4637476]
[1762187645722,0.10751039,106480.0,106470.0,0.3698]
[1762187646036,0.46831039,106480.0,106470.0,0.07576357]
[1762187646237,0.89719725,106480.0,106470.0,0.07576357]
[1762187646735,0.89719725,106480.0,106460.0,0.00320626]
[1762187646736,0.08095,106470.0,106460.0,0.00320626]
[1762187646936,1.20831686,106470.0,106460.0,0.00320626]
[1762187647136,1.20831686,106470.0,106460.0,0.08642111]
[1762187647336,1.20831686,106470.0,106460.0,0.00320626]
[1762187647536,1.01423,106470.0,106460.0,0.00320626]
[1762187647737,0.77943,106470.0,106460.0,0.09716266]
[1762187647931,0.65343,106470.0,106460.0,0.00320626]
[1762187648136,0.08095,106470.0,106460.0,0.53534266]
[1762187648332,0.0424184,106480.0,106470.0,0.1713276]
[1762187648538,0.0657384,106480.0,106470.0,0.36541446]
[1762187648840,0.2921084,106490.0,106480.0,0.1342287]
[1762187649039,0.34438729,106490.0,106480.0,0.1342287]
[1762187649926,0.34444186,106490.0,106480.0,0.4950287]
[1762187650334,0.42870346,106490.0,106480.0,0.1713187]
[1762187650638,0.42870346,106490.0,106480.0,0.5321187]
[1762187651238,0.42870346,106490.0,106480.0,0.07738]
[1762187651436,0.42870346,106490.0,106470.0,0.43818]
[1762187651437,0.10427,106480.0,106470.0,0.43818]
[1762187651639,0.10427,106480.0,106470.0,0.3608]
[1762187651830,0.10427,106480.0,106470.0,0.5321272]
[1762187652141,0.0423,106480.0,106470.0,0.5321272]
[1762187652343,0.53463886,106490.0,106480.0,0.1713184]
[1762187652635,0.53463886,106490.0,106480.0,0.5321184]
[1762187652840,0.52465427,106490.0,106480.0,0.5321184]
[1762187653731,0.51265427,106490.0,106480.0,0.5321184]
[1762187654036,0.52277109,106490.0,106480.0,0.07738]
[1762187654434,0.53477109,106490.0,106480.0,0.07838]
[1762187654741,0.43072457,106490.0,106480.0,0.5562584]
[1762187655132,0.09300457,106490.0,106480.0,0.5562584]
[1762187655332,0.09300457,106490.0,106480.0,0.75034526]
[1762187655536,0.09300457,106490.0,106480.0,0.89884526]
[1762187655537,0.01205457,106490.0,106480.0,0.89884526]
[1762187655743,0.01205457,106490.0,106480.0,1.08806526]
[1762187656146,0.08523457,106490.0,106480.0,0.8939784]
[1762187656351,0.17916417,106490.0,106480.0,0.80004]
[1762187656551,0.17916417,106490.0,106480.0,0.86662299]
[1762187656737,0.17916417,106490.0,106480.0,0.84348299]
[1762187656940,0.17916417,106490.0,106480.0,0.7769]
[1762187657141,0.17916417,106490.0,106480.0,0.43918]
[1762187657446,0.17916417,106490.0,106480.0,0.5331184]
[1762187657646,0.04888457,106490.0,106480.0,0.5562584]
[1762187657838,0.14281417,106490.0,106480.0,0.62284139]
[1762187658039,0.17916417,106490.0,106480.0,0.59970139]
[1762187658346,0.17916417,106490.0,106480.0,0.001]
[1762187658737,0.53996417,106490.0,106480.0,0.001]
[1762187659047,0.73405103,106490.0,106480.0,0.001]
[1762187659351,0.1910084,106480.0,106470.0,0.06658299]
[1762187659548,1.08361526,106480.0,106470.0,0.06658299]
[1762187659740,0.1671273,106470.0,106460.0,0.00320626]
[1762187660045,0.5279273,106470.0,106460.0,0.00320626]
[1762187660346,0.7627273,106470.0,106460.0,0.00320626]
[1762187660549,0.1671451,106450.0,106440.0,0.3608]
[1762187660848,0.5048651,106450.0,106440.0,0.3608]
[1762187661034,0.093974,106440.0,106430.0,0.7924968]
[1762187661240,0.03683,106440.0,106430.0,0.8694068]
[1762187661548,0.03691988,106440.0,106430.0,0.8694068]
[1762187662848,0.07326988,106440.0,106430.0,0.8694068]
[1762187663250,0.08026988,106440.0,106430.0,0.8704068]
[1762187663638,0.09031918,106440.0,106430.0,0.5326868]
[1762187664543,0.08026988,106440.0,106430.0,0.5326868]
[1762187664746,0.00708988,106440.0,106430.0,0.72677366]
[1762187665746,0.10106368,106440.0,106430.0,0.72677366]
[1762187666048,0.10106368,106440.0,106430.0,0.5326868]
[1762187666250,0.13789368,106440.0,106430.0,0.43871]
[1762187666548,0.00708988,106440.0,106430.0,0.5326926]
[1762187666750,0.04391988,106440.0,106430.0,0.5326926]
[1762187667351,0.13789358,106440.0,106430.0,0.5326926]
[1762187667550,0.13789358,106440.0,106430.0,0.5326928]
[1762187668355,0.17424358,106440.0,106430.0,0.5326928]
[1762187668851,0.17424358,106440.0,106430.0,0.43871]
[1762187668852,0.19700358,106440.0,106430.0,0.43871]
[1762187669043,0.55780358,106440.0,106430.0,0.001]
[1762187669239,0.55780358,106440.0,106430.0,0.07347]
[1762187669240,0.55080358,106440.0,106430.0,0.07347]
[1762187669438,0.44006988,106440.0,106430.0,0.1684526]
[1762187669647,0.41702988,106440.0,106430.0,0.5292526]
[1762187669852,0.17324368,106440.0,106430.0,0.5292526]
[1762187670047,0.51100368,106440.0,106430.0,0.5292526]
[1762187671450,0.53376368,106440.0,106430.0,0.5292526]
[1762187671858,0.89456368,106440.0,106430.0,0.1684526]
[1762187672455,0.89456368,106440.0,106430.0,0.001]
[1762187675063,1.32353054,106440.0,106430.0,0.001]
[1762187675258,0.1688626,106430.0,106420.0,0.00310078]
[1762187675453,0.5296626,106430.0,106420.0,0.00310078]
[1762187675961,0.7645826,106430.0,106420.0,0.00310078]
[1762187676358,0.1688804,106410.0,106400.0,0.4919287]
[1762187676553,0.50671508,106410.0,106400.0,0.5282787]
[1762187676753,0.50671508,106410.0,106400.0,0.43427]
[1762187677361,0.1916493,106400.0,106390.0,0.43437702]
[1762187677557,0.5524493,106400.0,106390.0,0.03722702]
[1762187677758,0.5524493,106400.0,106390.0,0.00010702]
[1762187677957,0.74653616,106400.0,106390.0,0.00010702]
[1762187678158,0.1688979,106390.0,106380.0,0.00310194]
[1762187678359,1.07158629,106390.0,106380.0,0.00310194]
[1762187678563,1.30658629,106390.0,106380.0,0.00310194]
[1762187678762,1.30658629,106390.0,106380.0,1.94e-06]
[1762187679166,1.30658629,106390.0,106350.0,0.59490649]
[1762187679167,0.1916846,106360.0,106350.0,0.59490649]
[1762187679367,0.5294446,106360.0,106350.0,0.59490649]
[1762187679665,0.52953115,106360.0,106350.0,0.1675235]
[1762187679860,0.1689333,106350.0,106340.0,0.4901061]
[1762187680069,0.07488,106350.0,106340.0,0.5980183]
[1762187680262,0.07488,106350.0,106340.0,0.53143531]
[1762187680867,8.655e-05,106360.0,106350.0,0.1675231]
[1762187681060,0.43548655,106360.0,106350.0,0.43427]
[1762187681372,0.07488,106350.0,106340.0,0.36390311]
[1762187681960,0.08471299,106350.0,106340.0,0.45796511]
[1762187682166,0.08471299,106350.0,106340.0,0.4304861]
[1762187682462,0.08471299,106350.0,106340.0,0.00310311]
[1762187682666,0.08471299,106350.0,106340.0,0.09716521]
[1762187682860,0.08671299,106350.0,106340.0,0.13428521]
[1762187683265,0.51860619,106350.0,106340.0,0.00310311]
[1762187683468,0.87940619,106350.0,106340.0,0.00310311]
[1762187684364,1.01218519,106350.0,106340.0,0.00310311]
[1762187684759,0.87940619,106350.0,106340.0,0.00310311]
[1762187685465,0.09114,106340.0,106330.0,7.839e-05]
[1762187685662,0.58483009,106340.0,106330.0,7.839e-05]
[1762187685857,0.45205109,106340.0,106330.0,0.07322839]
[1762187686160,0.45205109,106340.0,106330.0,0.06666138]
[1762187686360,0.78989109,106340.0,106330.0,0.06666138]
[1762187686566,0.78989109,106340.0,106330.0,7.839e-05]
[1762187687971,1.15779009,106340.0,106330.0,7.839e-05]
[1762187688171,1.02601109,106340.0,106330.0,7.839e-05]
[1762187688374,0.79097109,106340.0,106330.0,0.16729899]
[1762187688573,0.00111109,106340.0,106330.0,0.66087799]
[1762187688771,0.08204039,106370.0,106360.0,0.1875141]
[1762187688966,0.41992039,106370.0,106360.0,0.6810931]
[1762187689167,0.08204039,106370.0,106360.0,0.6810931]
[1762187689469,0.41992039,106370.0,106360.0,0.6810931]
[1762187689771,0.42000855,106370.0,106360.0,0.5483141]
[1762187690365,0.42000855,106370.0,106360.0,0.45427]
[1762187691070,0.42000855,106370.0,106360.0,0.5483141]
[1762187691272,0.42600855,106370.0,106360.0,0.5483141]
[1762187691866,0.42300855,106370.0,106360.0,0.5483141]
[1762187692068,0.08512855,106370.0,106360.0,0.5483141]
[1762187692666,0.42300855,106370.0,106360.0,0.07315]
[1762187692867,0.07219,106360.0,106350.0,0.5280023]
[1762187693266,0.07219,106350.0,106340.0,0.17004821]
[1762187693466,0.1876042,106360.0,106350.0,0.07315]
[1762187693670,0.1876042,106360.0,106350.0,0.6607819]
[1762187693671,0.41007,106360.0,106350.0,0.6607819]
[1762187693876,0.5041141,106360.0,106350.0,0.6607819]
[1762187694070,0.5254841,106360.0,106350.0,0.5280029]
[1762187694375,0.5264841,106360.0,106350.0,0.5280029]
[1762187694669,0.5264841,106360.0,106350.0,0.6607819]
[1762187694874,0.1886041,106360.0,106350.0,0.6607819]
[1762187695068,0.41107,106360.0,106350.0,0.6607819]
[1762187695274,0.5264838,106360.0,106350.0,0.6607819]
[1762187695581,0.5051138,106360.0,106350.0,0.6607819]
[1762187695766,0.41107,106360.0,106350.0,0.6607819]
[1762187696076,0.001,106360.0,106350.0,0.72736489]
[1762187696466,0.0950438,106360.0,106350.0,0.72736459]
[1762187696973,0.0950437,106360.0,106350.0,0.72736459]
[1762187697168,1.5950437,106360.0,106350.0,0.72736459]
[1762187697364,1.5950437,106360.0,106350.0,0.43395]
[1762187697565,1.501,106360.0,106350.0,0.5280025]
[1762187697877,1.5950438,106360.0,106350.0,0.5280025]
[1762187698268,1.501,106360.0,106350.0,0.6607815]
[1762187698573,1.5950438,106360.0,106350.0,0.6607815]
[1762187698774,1.5950438,106360.0,106350.0,0.5280025]
[1762187698975,1.5950438,106360.0,106350.0,0.6607815]
[1762187699166,1.5950438,106360.0,106350.0,0.72736449]
[1762187699675,1.501,106360.0,106350.0,0.72736449]
[1762187700365,1.6164137,106360.0,106350.0,0.46469299]
[1762187700568,1.9772137,106360.0,106350.0,0.07315]
[1762187700880,1.501,106360.0,106350.0,0.72736459]
[1762187701676,1.501,106360.0,106350.0,0.9986216]
[1762187701879,8.816e-05,106370.0,106360.0,0.1875136]
[1762187702065,8.816e-05,106370.0,106360.0,0.6810926]
[1762187702267,1.50008816,106370.0,106360.0,0.74772207]
[1762187702573,1.50008816,106370.0,106360.0,0.6810926]
[1762187703077,1.50008816,106370.0,106360.0,0.74773189]
[1762187703278,8.816e-05,106370.0,106360.0,0.74773189]
[1762187703574,0.16631296,106370.0,106360.0,0.3608]
[1762187703771,1.66631296,106370.0,106360.0,0.42743929]
[1762187703974,1.66631296,106370.0,106360.0,0.59463299]
[1762187704172,1.66931296,106370.0,106360.0,0.59463299]
[1762187704378,2.00711296,106370.0,106360.0,0.42743929]
[1762187704579,2.00711296,106370.0,106360.0,0.5279937]
[1762187704774,2.00711306,106370.0,106360.0,0.61495299]
[1762187705079,2.00711306,106370.0,106360.0,0.50058929]
[1762187705472,2.00711306,106370.0,106360.0,0.43395]
[1762187705672,2.00711306,106370.0,106360.0,0.07315]
[1762187706279,0.1318137,106360.0,106350.0,0.55880129]
[1762187706481,1.93492706,106370.0,106360.0,0.1671937]
[1762187706680,1.84088816,106370.0,106360.0,0.5279937]
[1762187706876,1.93492306,106370.0,106360.0,0.59463299]
[1762187707178,1.93492306,106370.0,106360.0,0.42743929]
[1762187707381,1.93492306,106370.0,106360.0,0.50058929]
[1762187708489,1.84088816,106370.0,106360.0,0.59463329]